Workbook

Sheet Recital
B2: Barton Consultancy
A4: ="Information used in preparing certificate " & CertificateReference &" dated " & TEXT(CertificateSigned,"dd mmmm yyyy") -> Information used in preparing certificate ABP00300/00824 dated 28 November 2018
A6: Instructor Person
A8: Identification code
A9: Title | D9: Ms
A10: First name | D10: Jane
A11: Surname | D11: Smith
A12: Telephone | D12: (08) 9000 0000
A13: Email | D13: address@email.com
A15: Instructor Firm
A17: Identification code
A18: Name | D18: Jane Smith Accounting
A19: Street address | D19: 1 Sample Street
A20: Street address line 2
A21: Street town | D21: Perth
A22: Street postcode | D22: 6000
A23: State | D23: WA
A24: Postal address | D24: PO Box
A25: Postal town | D25: Perth
A26: Postal postcode | D26: 6000
A27: Telephone | D27: (08) 9000 0000
A28: Email | D28: address@email.com
A30: Fund Information
A32: Identification code
A33: Fund name | D33: Sample Superannuation Fund
A34: Trustee name | D34: John Smith
A35: Fund reference
A36: Job reference
A37: Financial year end | D37: 2018-06-30
A38: Segregated current pension liabilites
A39: Segregated non current pension liabilities
A40: Are final balances to be calculated? (True or False) | D40: FALSE
A41: Unsegregated superannuation liabilities | D41: 490336 | E41: =IF(CalcFinBal=TRUE,IF(ABS(UnsegTot-D168)>0.005,"Does not reconcile with "&$A168&TEXT(D168," $###,###.00"),""),IF(ABS(UnsegTot-D79)>0.005,"Does not reconcile with "&TEXT(D79," $###,###.00"),"")) -> 
A42: =IF(CalcFinBal=TRUE,"Administration expenses", "Not needed") -> Not needed
A43: =IF(CalcFinBal=TRUE,"Franked income", "Not needed") -> Not needed
A44: =IF(CalcFinBal=TRUE,"Foreign income", "Not needed") -> Not needed
A45: =IF(CalcFinBal=TRUE,"Foreign tax credits", "Not needed") -> Not needed
A46: =IF(CalcFinBal=TRUE,"All other income and capital gains", "Not needed") -> Not needed
A47: =IF(CalcFinBal=TRUE,"Full potential investment tax on foreign income", "Not needed") -> Not needed
A48: =IF(CalcFinBal=TRUE,"Full potential investment tax ignoring foreign income", "Not needed") -> Not needed
A50: Additional periods to be certified (Dates inclusive)
D51: From | E51: To
A52: Additional period 1 | D52: 2017-07-01 | E52: 2018-06-30 | F52: =IF(D52>=E52,"Wrong","") -> 
A53: Additional period 2 | D53: 2018-07-01 | E53: 2018-06-30 | F53: =IF(D53>=E53,"Wrong","") -> Wrong
A54: Additional period 3 | D54: 2018-07-01 | E54: 2018-06-30 | F54: Wrong
A55: Additional period 4 | D55: 2018-07-01 | E55: 2018-06-30 | F55: Wrong
A58: Instructor Confirmations
A60: Account Based Pensions permitted by Trust Deed (True or False) | I60: FALSE
A61: Pensions paid in accordance with Trust Deed and pension creation minutes (True or False) | I61: FALSE
A62: Unless specified otherwise, all information relates to unsegregated assets and liabilities (True or False) | I62: FALSE
A63: Confirmed that pensions are Retirement Pensions within the meaning of ITAA 97 section 307-75 (True or False) | I63: FALSE
A66: Individual Account Information (Unsegregated Accounts Only)
A69: Account name | D69: All | E69: JS Pension | F69: JS Accum | G69: ES Pension | H69: ES Accum
A70: Account commenced | E70: 2000-07-01 | F70: 2000-07-01 | G70: 2000-07-01 | H70: 2000-07-01
A71: Pension commenced | E71: 2009-07-01 | G71: 2009-07-01
A72: Beginning year balance | D72: =SUM(E72:H72) -> 468924 | E72: 287216 | F72: 50507 | G72: 96854 | H72: 34347
A73: Total non concessional contributions | D73: =SUM(E73:H73) -> 0
A74: Total concessional contributions | D74: =SUM(E74:H74) -> 0
A75: Total transfers in | D75: =SUM(E75:H75) -> 0
A76: Total insurance premiums | D76: =SUM(E76:H76) -> 0
A77: Total insurance claim receipts | D77: =SUM(E77:H77) -> 0
A78: Total benefits, insurance or transfers out | D78: =SUM(E78:H78) -> 48000 | E78: 24000 | G78: 24000
A79: =IF(CalcFinBal=FALSE,"Closing balance", "Not needed") -> Closing balance | D79: =SUM(E79:H79) -> 490336 | E79: 306892 | F79: 58630 | G79: 84943 | H79: 39871
A82: Individual Account Transactions
C84: =INDEX(AccountNames,C115) -> JS Pension | E84: =INDEX(AccountNames,E115) -> JS Accum | G84: =INDEX(AccountNames,G115) -> ES Pension | I84: =INDEX(AccountNames,I115) -> ES Accum | L84: Inclusive start date | M84: =D52 -> 2017-07-01 | N84: Inclusive end date | O84: =E52 -> 2018-06-30 | P84: Inclusive start date | Q84: =D53 -> 2018-07-01 | R84: Inclusive end date | S84: =E53 -> 2018-06-30 | T84: Inclusive start date | U84: =D54 -> 2018-07-01 | V84: Inclusive end date | W84: =E54 -> 2018-06-30 | X84: Inclusive start date | Y84: =D55 -> 2018-07-01 | Z84: Inclusive end date | AA84: =E55 -> 2018-06-30
A85: Date | C85: Contributions / transfers in | D85: Pensions / transfers out | E85: Contributions / transfers in | F85: Pensions / transfers out | G85: Contributions / transfers in | H85: Pensions / transfers out | I85: Contributions / transfers in | J85: Pensions / transfers out | L85: Days | M85: Pension product | N85: Non pension product | P85: Days | Q85: Pension product | R85: Non pension product | T85: Days | U85: Pension product | V85: Non pension product | X85: Days | Y85: Pension product | Z85: Non pension product
A86: 2017-07-16 | D86: 2000 | L86: =IF($A86>O$84,0,MAX(0,MAX(O$84,$A86)-MAX(M$84,$A86)+1)) -> 350 | M86: =L86*SUM($C86:$J86*TransactionSign*PensFlag) -> -700000 | N86: =L86*SUM($C86:$J86*TransactionSign*NonPensFlag) -> 0 | P86: =IF($A86>S$84,0,MAX(0,MAX(S$84,$A86)-MAX(Q$84,$A86)+1)) -> 0 | Q86: =P86*SUM($C86:$J86*TransactionSign*PensFlag) -> 0 | R86: =P86*SUM($C86:$J86*TransactionSign*NonPensFlag) -> 0 | T86: =IF($A86>W$84,0,MAX(0,MAX(W$84,$A86)-MAX(U$84,$A86)+1)) -> 0 | U86: =T86*SUM($C86:$J86*TransactionSign*PensFlag) -> 0 | V86: =T86*SUM($C86:$J86*TransactionSign*NonPensFlag) -> 0 | X86: =IF($A86>AA$84,0,MAX(0,MAX(AA$84,$A86)-MAX(Y$84,$A86)+1)) -> 0 | Y86: =X86*SUM($C86:$J86*TransactionSign*PensFlag) -> 0 | Z86: =X86*SUM($C86:$J86*TransactionSign*NonPensFlag) -> 0
A87: 2017-08-17 | D87: 2000 | L87: 318 | M87: =L87*SUM($C87:$J87*TransactionSign*PensFlag) -> -636000 | N87: =L87*SUM($C87:$J87*TransactionSign*NonPensFlag) -> 0 | P87: 0 | Q87: =P87*SUM($C87:$J87*TransactionSign*PensFlag) -> 0 | R87: =P87*SUM($C87:$J87*TransactionSign*NonPensFlag) -> 0 | T87: 0 | U87: =T87*SUM($C87:$J87*TransactionSign*PensFlag) -> 0 | V87: =T87*SUM($C87:$J87*TransactionSign*NonPensFlag) -> 0 | X87: 0 | Y87: =X87*SUM($C87:$J87*TransactionSign*PensFlag) -> 0 | Z87: =X87*SUM($C87:$J87*TransactionSign*NonPensFlag) -> 0
A88: 2017-09-16 | D88: 2000
A89: 2017-10-16 | D89: 2000
A90: 2017-11-16 | D90: 2000
A91: 2017-12-16 | D91: 2000
A92: 2018-01-18 | D92: 2000
A93: 2018-02-16 | D93: 2000
A94: 2018-03-16 | D94: 2000
A95: 2018-04-16 | D95: 2000
A96: 2018-05-17 | D96: 2000
A97: 2018-06-16 | D97: 2000
A98: 2017-07-16 | H98: 2000
A99: 2017-08-17 | H99: 2000
A100: 2017-09-16 | H100: 2000
A101: 2017-10-16 | H101: 2000
A102: 2017-11-16 | H102: 2000
A103: 2017-12-16 | H103: 2000
A104: 2018-01-18 | H104: 2000
A105: 2018-02-16 | H105: 2000
A106: 2018-03-16 | H106: 2000
A107: 2018-04-16 | H107: 2000
A108: 2018-05-17 | H108: 2000 | L108: 45 | M108: =L108*SUM($C108:$J108*TransactionSign*PensFlag) -> -90000 | N108: =L108*SUM($C108:$J108*TransactionSign*NonPensFlag) -> 0 | P108: 0 | Q108: =P108*SUM($C108:$J108*TransactionSign*PensFlag) -> 0 | R108: =P108*SUM($C108:$J108*TransactionSign*NonPensFlag) -> 0 | T108: 0 | U108: =T108*SUM($C108:$J108*TransactionSign*PensFlag) -> 0 | V108: =T108*SUM($C108:$J108*TransactionSign*NonPensFlag) -> 0 | X108: 0 | Y108: =X108*SUM($C108:$J108*TransactionSign*PensFlag) -> 0 | Z108: =X108*SUM($C108:$J108*TransactionSign*NonPensFlag) -> 0
A109: 2018-06-16 | H109: 2000 | L109: =IF($A109>O$84,0,MAX(0,MAX(O$84,$A109)-MAX(M$84,$A109)+1)) -> 15 | M109: =L109*SUM($C109:$J109*TransactionSign*PensFlag) -> -30000 | N109: =L109*SUM($C109:$J109*TransactionSign*NonPensFlag) -> 0 | P109: =IF($A109>S$84,0,MAX(0,MAX(S$84,$A109)-MAX(Q$84,$A109)+1)) -> 0 | Q109: =P109*SUM($C109:$J109*TransactionSign*PensFlag) -> 0 | R109: =P109*SUM($C109:$J109*TransactionSign*NonPensFlag) -> 0 | T109: =IF($A109>W$84,0,MAX(0,MAX(W$84,$A109)-MAX(U$84,$A109)+1)) -> 0 | U109: =T109*SUM($C109:$J109*TransactionSign*PensFlag) -> 0 | V109: =T109*SUM($C109:$J109*TransactionSign*NonPensFlag) -> 0 | X109: =IF($A109>AA$84,0,MAX(0,MAX(AA$84,$A109)-MAX(Y$84,$A109)+1)) -> 0 | Y109: =X109*SUM($C109:$J109*TransactionSign*PensFlag) -> 0 | Z109: =X109*SUM($C109:$J109*TransactionSign*NonPensFlag) -> 0
A110: All | C110: 0 | D110: 24000 | E110: 0 | F110: 0 | G110: 0 | H110: 24000 | I110: 0 | J110: 0 | M110: =SUM(M86:M109) -> -1456000 | N110: =SUM(N86:N109) -> 0 | Q110: =SUM(Q86:Q109) -> 0 | R110: =SUM(R86:R109) -> 0 | U110: =SUM(U86:U109) -> 0 | V110: =SUM(V86:V109) -> 0 | Y110: =SUM(Y86:Y109) -> 0 | Z110: =SUM(Z86:Z109) -> 0
A111: Discrepancy | C111: 0 | D111: 0 | E111: 0 | F111: 0 | G111: 0 | H111: 0 | I111: 0 | J111: 0 | L111: =IF(YrStart>O$84,0,MAX(0,MAX(O$84,YrStart)-MAX(M$84,YrStart)+1)) -> 365 | M111: =L111*SUM(IndvlBegBal*IndvlPensFlag) ->  | N111: =L111*SUM(IndvlBegBal*IndvlNonPensFlag) ->  | P111: =IF(YrStart>S$84,0,MAX(0,MAX(S$84,YrStart)-MAX(Q$84,YrStart)+1)) -> 0 | Q111: =P111*SUM(IndvlBegBal*IndvlPensFlag) ->  | R111: =P111*SUM(IndvlBegBal*IndvlNonPensFlag) ->  | T111: =IF(YrStart>W$84,0,MAX(0,MAX(W$84,YrStart)-MAX(U$84,YrStart)+1)) -> 0 | U111: =T111*SUM(IndvlBegBal*IndvlPensFlag) ->  | V111: =T111*SUM(IndvlBegBal*IndvlNonPensFlag) ->  | X111: =IF(YrStart>AA$84,0,MAX(0,MAX(AA$84,YrStart)-MAX(Y$84,YrStart)+1)) -> 0 | Y111: =X111*SUM(IndvlBegBal*IndvlPensFlag) ->  | Z111: =X111*SUM(IndvlBegBal*IndvlNonPensFlag) -> 
A112: Pension average | C112: 0 | D112: 11945.20548 | E112: 0 | F112: 0 | G112: 0 | H112: 11945.20548 | I112: 0 | J112: 0 | M112: =M111+M110 ->  | N112: =N111+N110 ->  | O112: =M112/(M112+N112) ->  | Q112: =Q111+Q110 ->  | R112: =R111+R110 ->  | S112: =Q112/(Q112+R112) ->  | U112: =U111+U110 ->  | V112: =V111+V110 ->  | W112: =U112/(U112+V112) ->  | Y112: =Y111+Y110 ->  | Z112: =Z111+Z110 ->  | AA112: =Y112/(Y112+Z112) -> 
A113: All average | C113: 0 | D113: 11945.20548 | E113: 0 | F113: 0 | G113: 0 | H113: 11945.20548 | I113: 0 | J113: 0
A114: Inward cash after pension commencement | C114: 0 | E114: 0 | G114: 0 | I114: 0
C115: 1 | D115: 1 | E115: =1+C115 -> 2 | F115: =1+D115 -> 2 | G115: 3 | H115: 3 | I115: 4 | J115: 4
A116: Direction | C116: =IF(ISODD(COLUMN(C115)),1,-1) -> 1 | D116: =IF(ISODD(COLUMN(D115)),1,-1) -> -1 | E116: =IF(ISODD(COLUMN(E115)),1,-1) -> 1 | F116: =IF(ISODD(COLUMN(F115)),1,-1) -> -1 | G116: =IF(ISODD(COLUMN(G115)),1,-1) -> 1 | H116: =IF(ISODD(COLUMN(H115)),1,-1) -> -1 | I116: =IF(ISODD(COLUMN(I115)),1,-1) -> 1 | J116: =IF(ISODD(COLUMN(J115)),1,-1) -> -1
A117: Pension flag | C117: =IF(INDEX(IndvlPensComm,C115)>0,1,0) -> 1 | D117: =IF(INDEX(IndvlPensComm,D115)>0,1,0) -> 1 | E117: =IF(INDEX(IndvlPensComm,E115)>0,1,0) -> 0 | F117: =IF(INDEX(IndvlPensComm,F115)>0,1,0) -> 0 | G117: =IF(INDEX(IndvlPensComm,G115)>0,1,0) -> 1 | H117: =IF(INDEX(IndvlPensComm,H115)>0,1,0) -> 1 | I117: =IF(INDEX(IndvlPensComm,I115)>0,1,0) -> 0 | J117: =IF(INDEX(IndvlPensComm,J115)>0,1,0) -> 0
A118: Non pension flag | C118: =IF(C117=0,1,0) -> 0 | D118: =IF(D117=0,1,0) -> 0 | E118: 1 | F118: 1 | G118: 0 | H118: 0 | I118: 1 | J118: 1
A122: Key results
A124: Average unsegregated pension liabilities | D124: 360179.589
A125: Average unsegregated non pension liabilities | D125: 84854
A126: Tax free proportion of unsegregated income | D126: 0.8093312458
A127: ="Unsegregated pension liabilities at "&TEXT(CertDate,"dd mmm yyyy") -> Unsegregated pension liabilities at 30 Jun 2018 | C127: =IF(ABS(1240.40870876351-1240.41290092689)>0.01,"Error","") ->  | D127: 391835
A128: ="Unsegregated non pension liabilities at "&TEXT(CertDate,"dd mmm yyyy") -> Unsegregated non pension liabilities at 30 Jun 2018 | C128: =IF(ABS(1240.40870876351-1240.41290092689)>0.01,"Error","") ->  | D128: 98501
A129: Fee payable (Sep 2009) | D129: 250
A130: Does instructor accept responsibility for fee? (True or False) | D130: FALSE
A132: Alternative period tax free proportions
A133: ="From "&TEXT(D52,"dd Mmm yy")&" to "&TEXT(E52,"dd Mmm yy")&" inclusive" -> From 01 Jul 17 to 30 Jun 18 inclusive | D133: 0.8093312458
A134: ="From "&TEXT(D53,"dd Mmm yy")&" to "&TEXT(E53,"dd Mmm yy")&" inclusive" -> From 01 Jul 18 to 30 Jun 18 inclusive | D134: NA
A135: ="From "&TEXT(D54,"dd Mmm yy")&" to "&TEXT(E54,"dd Mmm yy")&" inclusive" -> From 01 Jul 18 to 30 Jun 18 inclusive | D135: NA
A136: ="From "&TEXT(D55,"dd Mmm yy")&" to "&TEXT(E55,"dd Mmm yy")&" inclusive" -> From 01 Jul 18 to 30 Jun 18 inclusive | D136: NA
A139: Individual Account Details | E139: Unsegregated accounts only
D141: All | E141: JS Pension | F141: JS Accum | G141: ES Pension | H141: ES Accum
A142: Net cash inflow | D142: -48000 | E142: -24000 | F142: 0 | G142: -24000 | H142: 0
A143: Average pension | D143: 360179.589 | E143: 275270.7945 | F143: 0 | G143: 84908.79452 | H143: 0
A144: Average non pension | D144: 84854 | E144: 0 | F144: 50507 | G144: 0 | H144: 34347
A145: Average all | D145: 445033.589 | E145: 275270.7945 | F145: 50507 | G145: 84908.79452 | H145: 34347
A146: Pension proportion | D146: 0.8093312458 | E146: 1 | F146: 0 | G146: 1 | H146: 0
A147: Non pension proportion | D147: 0.1906687542 | E147: 0 | F147: 1 | G147: 0 | H147: 1
A148: Proportion of pension | D148: 1 | E148: 0.7642598384 | F148: 0 | G148: 0.2357401616 | H148: 0
A149: Proportion of non pension | D149: 1 | E149: 0 | F149: 0.595222382 | G149: 0 | H149: 0.404777618
A150: Pension proportion of all | D150: 0.8093312458 | E150: 0.6185393671 | F150: 0 | G150: 0.1907918787 | H150: 0
A151: Non pension proportion of all | D151: 0.1906687542 | E151: 0 | F151: 0.11349031 | G151: 0 | H151: 0.07717844416
A152: Proportion of all | D152: 1 | E152: 0.6185393671 | F152: 0.11349031 | G152: 0.1907918787 | H152: 0.07717844416
A153: Pension flag | E153: =IF(E$71>0,1,0) -> 1 | F153: =IF(F$71>0,1,0) -> 0 | G153: 1 | H153: =IF(H$71>0,1,0) -> 0
A154: Non pension flag | E154: =IF(E$71>0,0,1) -> 0 | F154: =IF(F$71>0,0,1) -> 1 | G154: 0 | H154: =IF(H$71>0,0,1) -> 1
D155: All | E155: JS Pension | F155: JS Accum | G155: ES Pension | H155: ES Accum
A156: =IF(CalcFinBal=TRUE,"Beginning balance","Calculation not required by client") -> Calculation not required by client | D156: 0 | E156: 0 | F156: 0 | G156: 0 | H156: 0
A157: =IF(CalcFinBal=TRUE,"Net cash inflow above","Calculation not required by client") -> Calculation not required by client | D157: 0 | E157: 0 | F157: 0 | G157: 0 | H157: 0
A158: =IF(CalcFinBal=TRUE,"Share of administration","Calculation not required by client") -> Calculation not required by client | D158: 0 | E158: 0 | F158: 0 | G158: 0 | H158: 0
A159: =IF(CalcFinBal=TRUE,"Administration tax deduction","Calculation not required by client") -> Calculation not required by client | D159: 0 | E159: 0 | F159: 0 | G159: 0 | H159: 0
A160: =IF(CalcFinBal=TRUE,"Contributions tax","Calculation not required by client") -> Calculation not required by client | D160: 0 | E160: 0 | F160: 0 | G160: 0 | H160: 0
A161: =IF(CalcFinBal=TRUE,"Share of franked income","Calculation not required by client") -> Calculation not required by client | D161: 0 | E161: 0 | F161: 0 | G161: 0 | H161: 0
A162: =IF(CalcFinBal=TRUE,"Share of foreign income","Calculation not required by client") -> Calculation not required by client | D162: 0 | E162: 0 | F162: 0 | G162: 0 | H162: 0
A163: =IF(CalcFinBal=TRUE,"Share of other income and capital gains","Calculation not required by client") -> Calculation not required by client | D163: 0 | E163: 0 | F163: 0 | G163: 0 | H163: 0
A164: =IF(CalcFinBal=TRUE,"Share of tax on foreign income","Calculation not required by client") -> Calculation not required by client | D164: 0 | E164: 0 | F164: 0 | G164: 0 | H164: 0
A165: =IF(CalcFinBal=TRUE,"Share of tax on all other income and capital gains","Calculation not required by client") -> Calculation not required by client | D165: 0 | E165: 0 | F165: 0 | G165: 0 | H165: 0
A166: =IF(CalcFinBal=TRUE,"Share of franking credits","Calculation not required by client") -> Calculation not required by client | D166: 0 | E166: 0 | F166: 0 | G166: 0 | H166: 0
A167: =IF(CalcFinBal=TRUE,"Share of foreign tax credits","Calculation not required by client") -> Calculation not required by client | D167: 0 | E167: 0 | F167: 0 | G167: 0 | H167: 0
A168: =IF(CalcFinBal=TRUE,"Calculated final balance","Calculation not required by client") -> Calculation not required by client | D168: 0 | E168: 0 | F168: 0 | G168: 0 | H168: 0
A169: Adopted final balance | D169: 490336 | E169: 306892 | F169: 58630 | G169: 84943 | H169: 39871

Sheet Certificate
A10: Barton Consultancy
A16: CERTIFICATE
A20: Name of fund | B20: Sample Superannuation Fund
A23: Full name of a trustee | B23: John Smith
A25: Period to which the certificate relates | B25: Year ended June 2018
A27: Date to which valuations of assets
A28: and liabilities relate (ie particular time) | B28: 2018-06-30
A30: ASSET VALUES
A32: Source of data | B32: Ms Jane Smith of Jane Smith Accounting
A34: Unsegregated assets at valuation
A35: date | B35: 490336
A38: Segregated current pension assets
A39: at valuation date | B39: 0
A41: Segregated non current pension
A42: assets at valuation date | B42: 0
A52: Barton Consultancy Pty Ltd ACN 060 885 387
A53: Providing solutions as actuaries, economists, mediators and statisticians.
A55: Level 8 251 Adelaide Terrace Perth
A56: PO Box 3584 East Perth 6892
A57: Telephone (08) 9225 5899 Facsimile (08) 9225 5877
A58: Barton@Actuary.com.au | B58: http://www.Actuary.com.au
A61: =" " & CertificateSubjName -> Sample Superannuation Fund
A62: =" Actuarial certificate at " &TEXT(CertificateDate,"d mmmm yyyy") -> Actuarial certificate at 30 June 2018
A63: =" Barton Consultancy" -> Barton Consultancy | B63: Page 2
A65: LIABILITY VALUES
A67: Source of data | B67: Ms Jane Smith of Jane Smith Accounting
A69: Unsegregated superannuation
A70: liabilities at certificate date | B70: 490336
A72: Unsegregated current pension
A73: liabilities at valuation date | B73: 391835
A75: Segregated current pension
A76: liabilities at valuation date | B76: 0
A78: Segregated non current pension
A79: liabilities at valuation date | B79: 0
A81: TAXATION CERTIFICATE
A83: Average current pension liabilities
A84: during certificate period | B84: 360179.59
A86: Average superannuation
A87: liabilities during certificate period | B87: 445033.59
A89: Ratio of unsegregated current
A90: pension liabilities to unsegregated
A91: superannuation liabilities | B91: 0.8093312458
A92: (ITAA 97 Section 295-390)
A94: Is the Actuary satisfied that the amount of
A95: the assets if accumulated after the particular
A96: time at the rate the actuary expects will be
A97: the rate of the fund's earnings on those
A98: assets, would provide the amount required
A99: to discharge in full the whole or part,
A100: as the case may be, of the current pension
A101: liabilities as they fall due: | B101: Yes
A103: Date of Certificate: | B103: 2018-11-28T10:26:26
A105: Name of Actuary: | B105: DENNIS EDWARD BARTON
A107: Qualifications of Actuary: | B107: BSc BEc FIAA SF Fin
A109: Address: | B109: Level 13
B110: 251 Adelaide Terrace
B111: Perth 6832
A114: =IF(Recital!D133<>"NA",Recital!A133 & " proportion " &TEXT(Recital!D133,"#.00%"),"") -> From 01 Jul 17 to 30 Jun 18 inclusive proportion 80.93% | B114: =IF(Recital!D135<>"NA",Recital!A135 & " proportion " &TEXT(Recital!D135,"#.00%"),"") -> 
A115: =IF(Recital!D134<>"NA",Recital!A134 & " proportion " &TEXT(Recital!D134,"#.00%"),"") ->  | B115: =IF(Recital!D136<>"NA",Recital!A136 & " proportion " &TEXT(Recital!D136,"#.00%"),"") -> 
A116: ="Note: This certificate is based on the attached information supplied by " &B32 & "." -> Note: This certificate is based on the attached information supplied by Ms Jane Smith of Jane Smith Accounting.
A117: Certificate reference | B117: ABP00300/00824
A129: Barton Consultancy
A133: Tax Invoice
A134: ABN 64 060 885 387
B136: 2018-11-28T10:26:28
A141: The Trustees
A142: Sample Superannuation Fund
A143: c/- Jane Smith Accounting
A144: PO Box
A145: Perth 6000
B146: ABP18/00063
A150: ="To professional fees in connection with "&TEXT(CertificateDate,"d MMMM YYYY")&" taxation certificate. " -> To professional fees in connection with 30 June 2018 taxation certificate.
B151: 227.27
A153: Goods and service tax | B153: 22.73
A155: Total due | B155: 250
A159: Thank you for the opportunity to help in this matter
A163: Payment options
A165: By direct deposit: Westpac Banking Corporation Account Processing & Programming Pty Ltd
A166: =" BSB 036 011 Account number 75 0362 Reference "&CertificateInvoice -> BSB 036 011 Account number 75 0362 Reference ABP18/00063
A167: By post: Please make cheques payable to Processing & Programming Pty Ltd
A168: Post Office Box 3584
A169: East Perth 6892
A173: Barton Consultancy Pty Ltd ACN 060 885 387
A174: Providing solutions as actuaries, economists, mediators and statisticians.
A176: Level 8 251 Adelaide Terrace Perth
A177: PO Box 3584 East Perth 6892
A178: Telephone (08) 9225 5899 Facsimile (08) 9225 5877
A179: Barton@Actuary.com.au | B179: http://www.Actuary.com.au
A183: Other services offered by Barton Consultancy and associated companies to accountants and their clients include: -
B184: Valuation of superannuation interests for family law purposes
B186: Valuation of life and remainder interests and sums required for Inheritance Act (Family and Dependants Provision) purposes
B188: Full service financial planning
B190: Low cost origination of investments and insurances

Sheet Supplied
B2: Barton Consultancy
A4: ="Information used in preparing certificate " & CertificateReference &" dated " & TEXT(CertificateSigned,"dd mmmm yyyy") -> Information used in preparing certificate ABP00300/00824 dated 28 November 2018
A6: Instructor Person
A8: Identification code
A9: Title | D9: Ms
A10: First name | D10: Jane
A11: Surname | D11: Smith
A12: Telephone | D12: (08) 9000 0000
A13: Email | D13: address@email.com
A15: Instructor Firm
A17: Identification code
A18: Name | D18: Jane Smith Accounting
A19: Street address | D19: 1 Sample Street
A20: Street address line 2
A21: Street town | D21: Perth
A22: Street postcode | D22: 6000
A23: State | D23: WA
A24: Postal address | D24: PO Box
A25: Postal town | D25: Perth
A26: Postal postcode | D26: 6000
A27: Telephone | D27: (08) 9000 0000
A28: Email | D28: address@email.com
A30: Fund Information
A32: Identification code
A33: Fund name | D33: Sample Superannuation Fund
A34: Trustee name | D34: John Smith
A35: Fund reference
A36: Job reference
A37: Financial year end | D37: 2018-06-30
A38: Segregated current pension liabilites
A39: Segregated non current pension liabilities
A40: Are final balances to be calculated | D40: FALSE
A41: Unsegregated superannuation liabilities | D41: 490336
A42: =IF(CalcFinBal=TRUE,"Administration expenses", "Not needed") -> Not needed
A43: =IF(CalcFinBal=TRUE,"Franked income", "Not needed") -> Not needed
A44: =IF(CalcFinBal=TRUE,"Foreign income", "Not needed") -> Not needed
A45: =IF(CalcFinBal=TRUE,"Foreign tax credits", "Not needed") -> Not needed
A46: =IF(CalcFinBal=TRUE,"All other income and capital gains", "Not needed") -> Not needed
A47: =IF(CalcFinBal=TRUE,"Full potential investment tax on foreign income", "Not needed") -> Not needed
A48: =IF(CalcFinBal=TRUE,"Full potential investment tax ignoring foreign income", "Not needed") -> Not needed
A50: Additional periods to be certified (Dates inclusive)
D51: From | E51: To
A52: Additional period 1 | D52: 2017-07-01 | E52: 2018-06-30
A53: Additional period 2 | D53: 2018-07-01 | E53: 2018-06-30
A54: Additional period 3 | D54: 2018-07-01 | E54: 2018-06-30
A55: Additional period 4 | D55: 2018-07-01 | E55: 2018-06-30
A58: Instructor Confirmations
A60: Account Based Pensions permitted by Trust Deed | I60: FALSE
A61: Pensions paid in accordance with Trust Deed and pension creation minutes | I61: FALSE
A62: Unless specified otherwise, all information relates to unsegregated assets and liabilities | I62: FALSE
A63: Confirmed that pensions are Retirement Pensions within the meaning of ITAA 97 section 307-75 (True or False) | I63: FALSE
A66: Individual Account Information (Unsegregated Accounts Only)
A69: Account name | D69: All | E69: JS Pension | F69: JS Accum | G69: ES Pension | H69: ES Accum
A70: Account commenced | E70: 2000-07-01 | F70: 2000-07-01 | G70: 2000-07-01 | H70: 2000-07-01
A71: Pension commenced | E71: 2009-07-01 | G71: 2009-07-01
A72: Beginning year balance | D72: =SUM(E72:H72) -> 468924 | E72: 287216 | F72: 50507 | G72: 96854 | H72: 34347
A73: Total non concessional contributions | D73: =SUM(E73:H73) -> 0
A74: Total concessional contributions | D74: =SUM(E74:H74) -> 0
A75: Total transfers in | D75: =SUM(E75:H75) -> 0
A76: Total insurance premiums | D76: =SUM(E76:H76) -> 0
A77: Total insurance claim receipts | D77: =SUM(E77:H77) -> 0
A78: Total benefits, insurance or transfers out | D78: =SUM(E78:H78) -> 48000 | E78: 24000 | G78: 24000
A79: =IF(CalcFinBal=FALSE,"Closing balance", "Not needed") -> Closing balance | D79: =SUM(E79:H79) -> 490336 | E79: 306892 | F79: 58630 | G79: 84943 | H79: 39871
A82: Individual Account Transactions | E82: User please insert or delete rows within the shaded area below (always retain at least four rows)
C84: =INDEX(AccountNames,C115) -> JS Pension | E84: =INDEX(AccountNames,E115) -> JS Accum | G84: =INDEX(AccountNames,G115) -> ES Pension | I84: =INDEX(AccountNames,I115) -> ES Accum
A85: Date | C85: Contributions / transfers in | D85: Pensions / transfers out | E85: Contributions / transfers in | F85: Pensions / transfers out | G85: Contributions / transfers in | H85: Pensions / transfers out | I85: Contributions / transfers in | J85: Pensions / transfers out
A86: 2017-07-16 | D86: 2000
A87: 2017-08-17 | D87: 2000
A88: 2017-09-16 | D88: 2000
A89: 2017-10-16 | D89: 2000
A90: 2017-11-16 | D90: 2000
A91: 2017-12-16 | D91: 2000
A92: 2018-01-18 | D92: 2000
A93: 2018-02-16 | D93: 2000
A94: 2018-03-16 | D94: 2000
A95: 2018-04-16 | D95: 2000
A96: 2018-05-17 | D96: 2000
A97: 2018-06-16 | D97: 2000
A98: 2017-07-16 | H98: 2000
A99: 2017-08-17 | H99: 2000
A100: 2017-09-16 | H100: 2000
A101: 2017-10-16 | H101: 2000
A102: 2017-11-16 | H102: 2000
A103: 2017-12-16 | H103: 2000
A104: 2018-01-18 | H104: 2000
A105: 2018-02-16 | H105: 2000
A106: 2018-03-16 | H106: 2000
A107: 2018-04-16 | H107: 2000
A108: 2018-05-17 | H108: 2000
A109: 2018-06-16 | H109: 2000
A110: All
A111: Discrepancy
A112: Pension average
A113: All average
A114: Inward cash after pension commencment
C115: 1 | D115: 1 | E115: =1+C115 -> 2 | F115: =1+D115 -> 2 | G115: 3 | H115: 3 | I115: 4 | J115: 4
A131: Does instructor accept responsibility for fee? | D131: FALSE

Sheet Changes
B2: Barton Consultancy
A4: =IF(SUM(F8,F17,F32,K60,J69,L84,L85,L86,F131)>0, "There are " & SUM(F8,F17,F32,K60,J69,L84,L85,L86,F131) & " differences between supplied and recited information.", "No difference between supplied and recited information") -> No difference between supplied and recited information
A6: Instructor Person
A8: Identification code | D8: =IF(Recital!D8 = Supplied!D8,"Same","Different") -> Same | F8: =SUM(IF(D8:D13="different",1,0)) -> 0 | G8: =SUM(F8,F17,F32,K60,L84,L85,L86,F131) -> 0
A9: Title | D9: =IF(Recital!D9 = Supplied!D9,"Same","Different") -> Same
A10: First name | D10: =IF(Recital!D10 = Supplied!D10,"Same","Different") -> Same
A11: Surname | D11: =IF(Recital!D11 = Supplied!D11,"Same","Different") -> Same
A12: Telephone | D12: =IF(Recital!D12 = Supplied!D12,"Same","Different") -> Same
A13: Email | D13: =IF(Recital!D13 = Supplied!D13,"Same","Different") -> Same
A15: Instructor Firm
A17: Identification code | D17: =IF(Recital!D17 = Supplied!D17,"Same","Different") -> Same | F17: =SUM(IF(D17:D28="different",1,0)) -> 0
A18: Name | D18: =IF(Recital!D18 = Supplied!D18,"Same","Different") -> Same
A19: Street address | D19: =IF(Recital!D19 = Supplied!D19,"Same","Different") -> Same
A20: Street address line 2 | D20: =IF(Recital!D20 = Supplied!D20,"Same","Different") -> Same
A21: Street town | D21: =IF(Recital!D21 = Supplied!D21,"Same","Different") -> Same
A22: Street postcode | D22: =IF(Recital!D22 = Supplied!D22,"Same","Different") -> Same | H22: =IF(InstrFirmPost<>"", "",IF(InstrFirmSt2<>"",InstrFirmState &" " & InstrFirmStPost,"")) -> 
A23: State | D23: =IF(Recital!D23 = Supplied!D23,"Same","Different") -> Same
A24: Postal address | D24: =IF(Recital!D24 = Supplied!D24,"Same","Different") -> Same
A25: Postal town | D25: =IF(Recital!D25 = Supplied!D25,"Same","Different") -> Same
A26: Postal postcode | D26: =IF(Recital!D26 = Supplied!D26,"Same","Different") -> Same
A27: Telephone | D27: =IF(Recital!D27 = Supplied!D27,"Same","Different") -> Same
A28: Email | D28: =IF(Recital!D28 = Supplied!D28,"Same","Different") -> Same
A30: Fund Information
A32: Identification code | D32: =IF(Recital!D32 = Supplied!D32,"Same","Different") -> Same | F32: =SUM(IF(D32:D48="different",1,0)) -> 0
A33: Fund name | D33: =IF(Recital!D33 = Supplied!D33,"Same","Different") -> Same
A34: Trustee name | D34: =IF(Recital!D34 = Supplied!D34,"Same","Different") -> Same
A35: Fund reference | D35: =IF(Recital!D35 = Supplied!D35,"Same","Different") -> Same
A36: Job reference | D36: =IF(Recital!D36 = Supplied!D36,"Same","Different") -> Same
A37: Financial year end | D37: =IF(Recital!D37 = Supplied!D37,"Same","Different") -> Same
A38: Segregated current pension liabilites | D38: =IF(Recital!D38 = Supplied!D38,"Same","Different") -> Same
A39: Segregated non current pension liabilities | D39: =IF(Recital!D39 = Supplied!D39,"Same","Different") -> Same
A40: Are final balances to be calculated | D40: =IF(Recital!D40 = Supplied!D40,"Same","Different") -> Same
A41: Unsegregated superannuation liabilities | D41: =IF(Recital!D41 = Supplied!D41,"Same","Different") -> Same
A42: =IF(CalcFinBal=TRUE,"Administration expenses", "Not needed") -> Not needed | D42: =IF(Recital!D42 = Supplied!D42,"Same","Different") -> Same
A43: =IF(CalcFinBal=TRUE,"Franked income", "Not needed") -> Not needed | D43: =IF(Recital!D43 = Supplied!D43,"Same","Different") -> Same
A44: =IF(CalcFinBal=TRUE,"Foreign income", "Not needed") -> Not needed | D44: =IF(Recital!D44 = Supplied!D44,"Same","Different") -> Same
A45: =IF(CalcFinBal=TRUE,"Foreign tax credits", "Not needed") -> Not needed | D45: =IF(Recital!D45 = Supplied!D45,"Same","Different") -> Same
A46: =IF(CalcFinBal=TRUE,"All other income and capital gains", "Not needed") -> Not needed | D46: =IF(Recital!D46 = Supplied!D46,"Same","Different") -> Same
A47: =IF(CalcFinBal=TRUE,"Full potential investment tax on foreign income", "Not needed") -> Not needed | D47: =IF(Recital!D47 = Supplied!D47,"Same","Different") -> Same
A48: =IF(CalcFinBal=TRUE,"Full potential investment tax ignoring foreign income", "Not needed") -> Not needed | D48: =IF(Recital!D48 = Supplied!D48,"Same","Different") -> Same
A50: Additional periods to be certified (Dates inclusive)
A52: Additional period 1 | D52: =IF(Recital!D52 = Supplied!D52,"Same","Different") -> Same | E52: =IF(Recital!E52 = Supplied!E52,"Same","Different") -> Same
A53: Additional period 2 | D53: =IF(Recital!D53 = Supplied!D53,"Same","Different") -> Same | E53: =IF(Recital!E53 = Supplied!E53,"Same","Different") -> Same
A54: Additional period 3 | D54: =IF(Recital!D54 = Supplied!D54,"Same","Different") -> Same | E54: =IF(Recital!E54 = Supplied!E54,"Same","Different") -> Same
A55: Additional period 4 | D55: =IF(Recital!D55 = Supplied!D55,"Same","Different") -> Same | E55: =IF(Recital!E55 = Supplied!E55,"Same","Different") -> Same
A58: Instructor Confirmations
A60: Account Based Pensions permitted by Trust Deed | I60: =IF(Recital!I60 = Supplied!I60,"Same","Different") -> Same | K60: =SUM(IF(I60:I62="different",1,0)) -> 0
A61: Pensions paid in accordance with Trust Deed and pension creation minutes | I61: =IF(Recital!I61 = Supplied!I61,"Same","Different") -> Same
A62: Unless specified otherwise, all information relates to unsegregated assets and liabilities | I62: =IF(Recital!I62 = Supplied!I62,"Same","Different") -> Same
A63: Confirmed that pensions are Retirement Pensions within the meaning of ITAA 97 section 307-75 (True or False) | I63: FALSE
A66: Individual Account Information (Unsegregated Accounts Only)
A69: Account name | D69: All | E69: =IF(Recital!E69 = Supplied!E69,"Same","Different") -> Same | F69: =IF(Recital!F69 = Supplied!F69,"Same","Different") -> Same | G69: =IF(Recital!G69 = Supplied!G69,"Same","Different") -> Same | H69: =IF(Recital!H69 = Supplied!H69,"Same","Different") -> Same | J69: =SUM(IF(AccountArray="different",1,0)) -> 0
A70: Account commenced | E70: =IF(Recital!E70 = Supplied!E70,"Same","Different") -> Same | F70: =IF(Recital!F70 = Supplied!F70,"Same","Different") -> Same | G70: =IF(Recital!G70 = Supplied!G70,"Same","Different") -> Same | H70: =IF(Recital!H70 = Supplied!H70,"Same","Different") -> Same
A71: Pension commenced | E71: =IF(Recital!E71 = Supplied!E71,"Same","Different") -> Same | F71: =IF(Recital!F71 = Supplied!F71,"Same","Different") -> Same | G71: =IF(Recital!G71 = Supplied!G71,"Same","Different") -> Same | H71: =IF(Recital!H71 = Supplied!H71,"Same","Different") -> Same
A72: Beginning year balance | E72: =IF(Recital!E72 = Supplied!E72,"Same","Different") -> Same | F72: =IF(Recital!F72 = Supplied!F72,"Same","Different") -> Same | G72: =IF(Recital!G72 = Supplied!G72,"Same","Different") -> Same | H72: =IF(Recital!H72 = Supplied!H72,"Same","Different") -> Same
A73: Total non concessional contributions | E73: =IF(Recital!E73 = Supplied!E73,"Same","Different") -> Same | F73: =IF(Recital!F73 = Supplied!F73,"Same","Different") -> Same | G73: =IF(Recital!G73 = Supplied!G73,"Same","Different") -> Same | H73: =IF(Recital!H73 = Supplied!H73,"Same","Different") -> Same
A74: Total concessional contributions | E74: =IF(Recital!E74 = Supplied!E74,"Same","Different") -> Same | F74: =IF(Recital!F74 = Supplied!F74,"Same","Different") -> Same | G74: =IF(Recital!G74 = Supplied!G74,"Same","Different") -> Same | H74: =IF(Recital!H74 = Supplied!H74,"Same","Different") -> Same
A75: Total transfers in | E75: =IF(Recital!E75 = Supplied!E75,"Same","Different") -> Same | F75: =IF(Recital!F75 = Supplied!F75,"Same","Different") -> Same | G75: =IF(Recital!G75 = Supplied!G75,"Same","Different") -> Same | H75: =IF(Recital!H75 = Supplied!H75,"Same","Different") -> Same
A76: Total insurance premiums | E76: =IF(Recital!E76 = Supplied!E76,"Same","Different") -> Same | F76: =IF(Recital!F76 = Supplied!F76,"Same","Different") -> Same | G76: =IF(Recital!G76 = Supplied!G76,"Same","Different") -> Same | H76: =IF(Recital!H76 = Supplied!H76,"Same","Different") -> Same
A77: Total insurance claim receipts | C77: =IF(Recital!C77= Supplied!C77,"Same","Different") -> Same | E77: =IF(Recital!E77 = Supplied!E77,"Same","Different") -> Same | F77: =IF(Recital!F77 = Supplied!F77,"Same","Different") -> Same | G77: =IF(Recital!G77 = Supplied!G77,"Same","Different") -> Same | H77: =IF(Recital!H77 = Supplied!H77,"Same","Different") -> Same
A78: Total benefits, insurance or transfers out | E78: =IF(Recital!E78 = Supplied!E78,"Same","Different") -> Same | F78: =IF(Recital!F78 = Supplied!F78,"Same","Different") -> Same | G78: =IF(Recital!G78 = Supplied!G78,"Same","Different") -> Same | H78: =IF(Recital!H78 = Supplied!H78,"Same","Different") -> Same
A79: =IF(CalcFinBal=FALSE,"Closing balance", "Not needed") -> Not needed | E79: =IF(Recital!E79 = Supplied!E79,"Same","Different") -> Same | F79: =IF(Recital!F79 = Supplied!F79,"Same","Different") -> Same | G79: =IF(Recital!G79 = Supplied!G79,"Same","Different") -> Same | H79: =IF(Recital!H79 = Supplied!H79,"Same","Different") -> Same
D81: =IF(ROWS(IndvlDates)<4,"Warning! Transaction array must contain at least 4 rows","") -> 
A82: Individual Account Transactions | E82: User please insert or delete rows within the shaded area below (always retain at least four rows)
C83: =IF(Recital!C83= Supplied!C83,"Same","Different") -> Same
C84: =IF(Recital!C84= Supplied!C84,"Same","Different") -> Same | D84: =IF(Recital!D84= Supplied!D84,"Same","Different") -> Same | E84: =IF(Recital!E84= Supplied!E84,"Same","Different") -> Same | F84: =IF(Recital!F84= Supplied!F84,"Same","Different") -> Same | G84: =IF(Recital!G84= Supplied!G84,"Same","Different") -> Same | H84: =IF(Recital!H84= Supplied!H84,"Same","Different") -> Same | I84: =IF(Recital!I84= Supplied!I84,"Same","Different") -> Same | J84: =IF(Recital!J84= Supplied!J84,"Same","Different") -> Same | L84: =SUM(IF(C84:J84="different",1,0)) -> 0
A85: Date | C85: =IF(Recital!C85= Supplied!C85,"Same","Different") -> Same | D85: =IF(Recital!D85= Supplied!D85,"Same","Different") -> Same | E85: =IF(Recital!E85= Supplied!E85,"Same","Different") -> Same | F85: =IF(Recital!F85= Supplied!F85,"Same","Different") -> Same | G85: =IF(Recital!G85= Supplied!G85,"Same","Different") -> Same | H85: =IF(Recital!H85= Supplied!H85,"Same","Different") -> Same | I85: =IF(Recital!I85= Supplied!I85,"Same","Different") -> Same | J85: =IF(Recital!J85= Supplied!J85,"Same","Different") -> Same | L85: =SUM(IF(IndvlDates="different",1,0)) -> 0
A86: Same | C86: Same | D86: Same | E86: Same | F86: Same | G86: Same | H86: Same | I86: Same | J86: Same | L86: =SUM(IF(TransactionArray="different",1,0)) -> 0
A87: Same | C87: Same | D87: Same | E87: Same | F87: Same | G87: Same | H87: Same | I87: Same | J87: Same
A88: Same | C88: Same | D88: Same | E88: Same | F88: Same | G88: Same | H88: Same | I88: Same | J88: Same
A89: Same | C89: Same | D89: Same | E89: Same | F89: Same | G89: Same | H89: Same | I89: Same | J89: Same
A90: Same | C90: Same | D90: Same | E90: Same | F90: Same | G90: Same | H90: Same | I90: Same | J90: Same
A91: Same | C91: Same | D91: Same | E91: Same | F91: Same | G91: Same | H91: Same | I91: Same | J91: Same
A92: Same | C92: Same | D92: Same | E92: Same | F92: Same | G92: Same | H92: Same | I92: Same | J92: Same
A93: Same | C93: Same | D93: Same | E93: Same | F93: Same | G93: Same | H93: Same | I93: Same | J93: Same
A94: Same | C94: Same | D94: Same | E94: Same | F94: Same | G94: Same | H94: Same | I94: Same | J94: Same
A95: Same | C95: Same | D95: Same | E95: Same | F95: Same | G95: Same | H95: Same | I95: Same | J95: Same
A96: Same | C96: Same | D96: Same | E96: Same | F96: Same | G96: Same | H96: Same | I96: Same | J96: Same
A97: Same | C97: Same | D97: Same | E97: Same | F97: Same | G97: Same | H97: Same | I97: Same | J97: Same
A98: Same | C98: Same | D98: Same | E98: Same | F98: Same | G98: Same | H98: Same | I98: Same | J98: Same
A99: Same | C99: Same | D99: Same | E99: Same | F99: Same | G99: Same | H99: Same | I99: Same | J99: Same
A100: Same | C100: Same | D100: Same | E100: Same | F100: Same | G100: Same | H100: Same | I100: Same | J100: Same
A101: Same | C101: Same | D101: Same | E101: Same | F101: Same | G101: Same | H101: Same | I101: Same | J101: Same
A102: Same | C102: Same | D102: Same | E102: Same | F102: Same | G102: Same | H102: Same | I102: Same | J102: Same
A103: Same | C103: Same | D103: Same | E103: Same | F103: Same | G103: Same | H103: Same | I103: Same | J103: Same
A104: Same | C104: Same | D104: Same | E104: Same | F104: Same | G104: Same | H104: Same | I104: Same | J104: Same
A105: Same | C105: Same | D105: Same | E105: Same | F105: Same | G105: Same | H105: Same | I105: Same | J105: Same
A106: Same | C106: Same | D106: Same | E106: Same | F106: Same | G106: Same | H106: Same | I106: Same | J106: Same
A107: Same | C107: Same | D107: Same | E107: Same | F107: Same | G107: Same | H107: Same | I107: Same | J107: Same
A108: Same | C108: Same | D108: Same | E108: Same | F108: Same | G108: Same | H108: Same | I108: Same | J108: Same
A109: Same | C109: Same | D109: Same | E109: Same | F109: Same | G109: Same | H109: Same | I109: Same | J109: Same
A110: All
A111: Discrepancy
A112: Pension average
A113: All average
A114: Inward cash after pension commencment
A123: Key results
A131: Does instructor accept responsibility for fee? | D131: =IF(Recital!D130 = Supplied!D131,"Same","Different") -> Same | F131: =IF(D131="different",1,0) -> 0
